fUST/lending_fUST_20250508
["ID","MTS","AMOUNT","RATE_DAILY","PERIOD"]
[360270521,1746684632832,-400.0,0.00010958,2]
[360270523,1746684632841,-424.09,0.00010958,2]
[360270524,1746684632850,-400.0,0.00010958,2]
[360270526,1746684632860,-400.0,0.00010958,2]
[360270528,1746684632869,-400.0,0.00010958,2]
[360270530,1746684632879,-400.0,0.00010958,2]
[360270532,1746684632890,-1442.19,0.00010958,2]
[360270534,1746684632899,-400.0,0.00010958,2]
[360270536,1746684632909,-400.0,0.00010958,2]
[360270538,1746684632919,-400.0,0.00010958,2]
[360270540,1746684632929,-400.0,0.00010958,2]
[360270542,1746684632938,-349.10828327,0.00010958,2]
[360270544,1746684632948,-534.07,0.00010958,2]
[360270546,1746684632958,-400.0,0.00010958,2]
[360270548,1746684632967,-1066.76,0.00010958,2]
[360270550,1746684632976,-400.0,0.00010958,2]
[360270552,1746684632986,-521.41,0.00010958,2]
[360270554,1746684632995,-3082.48,0.00010958,2]
[360270556,1746684633005,-400.0,0.00010958,2]
[360270558,1746684633014,-400.0,0.00010958,2]
[360270560,1746684633024,-400.0,0.00010958,2]
[360270562,1746684633033,-400.0,0.00010958,2]
[360270564,1746684633043,-1217.99,0.00010958,2]
[360270566,1746684633053,-546.37,0.00010958,2]
[360270568,1746684633064,-415.37,0.00010958,2]
[360270570,1746684633074,-400.0,0.00010958,2]
[360270572,1746684633083,-400.0,0.00010958,2]
[360270574,1746684633093,-400.0,0.00010958,2]
[360270576,1746684633103,-1363.41,0.00010958,2]
[360270578,1746684633112,-400.0,0.00010958,2]
[360270580,1746684633121,-604.26,0.00010958,2]
[360270581,1746684633131,-1060.3,0.00010958,2]
[360270583,1746684633140,-1235.85,0.00010958,2]
[360270585,1746684633150,-400.0,0.00010958,2]
[360270587,1746684633160,-400.0,0.00010958,2]
[360270589,1746684633170,-216.51533016,0.00010958,2]
[360270591,1746684633180,-400.0,0.00010958,2]
[360270593,1746684633190,-400.0,0.00010958,2]
[360270596,1746684633202,-400.0,0.00010958,2]
[360270597,1746684633212,-400.0,0.00010958,2]
[360270600,1746684633223,-400.0,0.00010958,2]
[360270602,1746684633233,-761.65,0.00010958,2]
[360270604,1746684633244,-400.0,0.00010958,2]
[360270605,1746684633254,-515.64,0.00010958,2]
[360270607,1746684633264,-400.0,0.00010958,2]
[360270609,1746684633274,-734.74,0.00010958,2]
[360270611,1746684633285,-804.57,0.00010958,2]
[360270613,1746684633294,-431.34,0.00010958,2]
[360270615,1746684633304,-400.0,0.00010958,2]
[360270618,1746684633314,-400.0,0.00010958,2]
[360270619,1746684633324,-400.0,0.00010958,2]
[360270621,1746684633334,-400.0,0.00010958,2]
[360270623,1746684633343,-400.0,0.00010958,2]
[360270626,1746684633353,-951.98,0.00010958,2]
[360270628,1746684633364,-655.69,0.00010958,2]
[360270630,1746684633374,-2052.24,0.00010958,2]
[360270632,1746684633383,-400.0,0.00010958,2]
[360270634,1746684633393,-400.0,0.00010958,2]
[360270636,1746684633404,-400.0,0.00010958,2]
[360270637,1746684633414,-812.83,0.00010958,2]
[360270638,1746684633424,-694.31,0.00010958,2]
[360270640,1746684633434,-400.0,0.00010958,2]
[360270642,1746684633443,-400.0,0.00010958,2]
[360270644,1746684633455,-411.42,0.00010958,2]
[360270646,1746684633465,-410.64,0.00010958,2]
[360270648,1746684633475,-592.73,0.00010958,2]
[360270650,1746684633486,-400.0,0.00010958,2]
[360270652,1746684633498,-483.72,0.00010958,2]
[360270654,1746684633508,-400.0,0.00010958,2]
[360270656,1746684633518,-400.0,0.00010958,2]
[360270658,1746684633528,-800.03,0.00010958,2]
[360270660,1746684633538,-2489.2,0.00010958,2]
[360270661,1746684633549,-400.0,0.00010958,2]
[360270663,1746684633559,-400.0,0.00010958,2]
[360270665,1746684633569,-400.0,0.00010958,2]
[360270667,1746684633580,-400.0,0.00010958,2]
[360270669,1746684633589,-636.13,0.00010958,2]
[360270671,1746684633600,-549.75,0.00010958,2]
[360270673,1746684633611,-754.37,0.00010958,2]
[360270675,1746684633623,-400.0,0.00010958,2]
[360270677,1746684633634,-400.0,0.00010958,2]
[360270679,1746684633644,-609.88,0.00010958,2]
[360270681,1746684633654,-400.0,0.00010958,2]
[360270683,1746684633664,-637.75,0.00010958,2]
[360270685,1746684633674,-498.46,0.00010958,2]
[360270687,1746684633684,-739.67,0.00010958,2]
[360270689,1746684633694,-400.0,0.00010958,2]
[360270691,1746684633704,-400.0,0.00010958,2]
[360270693,1746684633714,-400.0,0.00010958,2]
[360270695,1746684633724,-2839.1,0.00010958,2]
[360270697,1746684633734,-965.51,0.00010958,2]
[360270699,1746684633744,-275.08613029,0.00010958,2]
[360270701,1746684633754,-446.73,0.00010958,2]
[360270703,1746684633764,-3325.13,0.00010958,2]
[360270705,1746684633774,-400.0,0.00010958,2]
[360270707,1746684633784,-420.93,0.00010958,2]
[360270709,1746684633796,-720.22,0.00010958,2]
[360270711,1746684633806,-400.0,0.00011232,2]
[360270713,1746684633815,-400.0,0.00011232,2]
[360270715,1746684633825,-400.0,0.00011232,2]
[360270717,1746684633835,-400.0,0.00011232,2]
[360270719,1746684633845,-400.0,0.00011232,2]
[360270720,1746684633855,-400.0,0.00011232,2]
[360270722,1746684633866,-1471.7,0.00011232,2]
[360270724,1746684633876,-400.0,0.00011232,2]
[360270726,1746684633886,-921.09,0.00011232,2]
[360270728,1746684633897,-400.0,0.00011232,2]
[360270730,1746684633906,-400.0,0.00011232,2]
[360270732,1746684633916,-400.0,0.00011232,2]
[360270734,1746684633926,-400.0,0.00011232,2]
[360270736,1746684633936,-424.09,0.00011232,2]
[360270738,1746684633945,-400.0,0.00011232,2]
[360270740,1746684633955,-400.0,0.00011232,2]
[360270742,1746684633964,-400.0,0.00011232,2]
[360270743,1746684633973,-193.3193086,0.00011232,2]
[360270779,1746684634333,-206.6806914,0.00011232,2]
[360270781,1746684634343,-721.963078,0.00011232,2]
[360270894,1746684638796,-500.0,0.00010953,2]
[360270896,1746684638806,-500.0,0.00010953,2]
[360270898,1746684638816,-283.44599133,0.00010953,2]
[360270900,1746684638825,-452.51117117,0.00010953,2]
[360270902,1746684638837,-47.48882883,0.00010953,2]
[360270904,1746684638846,-500.0,0.00010953,2]
[360270906,1746684638856,-500.0,0.00010953,2]
[360270908,1746684638865,-500.0,0.00010953,2]
[360270910,1746684638875,-500.0,0.00010953,2]
[360270913,1746684638884,-500.0,0.00010953,2]
[360270916,1746684638893,-508.76777751,0.00010953,2]
[360270919,1746684638903,-500.0,0.00010953,2]
[360270922,1746684638912,-500.0,0.00010953,2]
[360270925,1746684638923,-500.0,0.00010953,2]
[360270928,1746684638932,-500.0,0.00010953,2]
[360270931,1746684638942,-500.0,0.00010953,2]
[360270934,1746684638951,-500.0,0.00010953,2]
[360270937,1746684638962,-364.42486482,0.00010953,2]
[360270940,1746684638972,-255.19326157,0.00010953,2]
[360270943,1746684638981,-500.0,0.00010953,2]
[360270946,1746684638991,-500.0,0.00010953,2]
[360270949,1746684639001,-500.0,0.00010953,2]
[360270952,1746684639010,-500.0,0.00010953,2]
[360270955,1746684639021,-500.0,0.00010953,2]
[360270957,1746684639030,-500.0,0.00010953,2]
[360270959,1746684639039,-500.0,0.00010953,2]
[360270961,1746684639049,-500.0,0.00010953,2]
[360270963,1746684639059,-500.0,0.00010953,2]
[360270966,1746684639073,-500.0,0.00010953,2]
[360270968,1746684639082,-500.0,0.00010953,2]
[360270970,1746684639092,-500.0,0.00010953,2]
[360270972,1746684639101,-500.0,0.00010953,2]
[360270974,1746684639111,-500.0,0.00010953,2]
[360270976,1746684639121,-500.0,0.00010953,2]
[360270978,1746684639131,-500.0,0.00010953,2]
[360270980,1746684639140,-500.0,0.00010953,2]
[360270982,1746684639149,-500.0,0.00010953,2]
[360270983,1746684639159,-500.0,0.00010953,2]
[360270985,1746684639168,-500.0,0.00010953,2]
[360270987,1746684639179,-500.0,0.00010953,2]
[360270990,1746684639189,-500.0,0.00010953,2]
[360270992,1746684639199,-500.0,0.00010953,2]
[360270993,1746684639208,-500.0,0.00010953,2]
[360270994,1746684639217,-500.0,0.00010953,2]
[360270995,1746684639227,-500.0,0.00010953,2]
[360270996,1746684639240,-500.0,0.00010953,2]
[360270997,1746684639250,-500.0,0.00010953,2]
[360270998,1746684639260,-500.0,0.00010953,2]
[360270999,1746684639270,-176.64617001,0.00010953,2]
[360271047,1746684641140,-323.35382999,0.00010953,2]
[360271049,1746684641150,-334.86843337,0.00010953,2]
[360271051,1746684641160,-500.0,0.00010953,2]
[360271053,1746684641171,-500.0,0.00010953,2]
[360271055,1746684641181,-500.0,0.00010953,2]
[360271057,1746684641191,-500.0,0.00010953,2]
[360271059,1746684641201,-500.0,0.00010953,2]
[360271061,1746684641211,-500.0,0.00010953,2]
[360271063,1746684641220,-500.0,0.00010953,2]
[360271065,1746684641231,-500.0,0.00010953,2]
[360271067,1746684641242,-500.0,0.00010953,2]
[360271069,1746684641251,-500.0,0.00010953,2]
[360271071,1746684641261,-500.0,0.00010953,2]
[360271073,1746684641271,-500.0,0.00010953,2]
[360271075,1746684641281,-400.0,0.00010958,2]
[360271077,1746684641291,-412.64,0.00010958,2]
[360271079,1746684641301,-2954.04,0.00010958,2]
[360271081,1746684641311,-400.0,0.00010958,2]
[360271083,1746684641321,-400.0,0.00010958,2]
[360271085,1746684641331,-720.226922,0.00011232,2]
[360271087,1746684641342,-400.0,0.00011232,2]
[360271089,1746684641352,-400.0,0.00011232,2]
[360271091,1746684641363,-400.0,0.00011232,2]
[360271093,1746684641373,-400.0,0.00011232,2]
[360271095,1746684641385,-534.07,0.00011232,2]
[360271097,1746684641396,-400.0,0.00011232,2]
[360271099,1746684641408,-1066.76,0.00011232,2]
[360271101,1746684641420,-400.0,0.00011232,2]
[360271103,1746684641432,-521.41,0.00011232,2]
[360271105,1746684641444,-400.0,0.00011232,2]
[360271107,1746684641460,-400.0,0.00011232,2]
[360271109,1746684641472,-1217.99,0.00011232,2]
[360271111,1746684641487,-530.64037664,0.00011232,2]
[360271141,1746684643733,-400.0,0.00010958,2]
[360271142,1746684643742,-501.5,0.00010958,2]
[360271143,1746684643752,-22.79350616,0.00011232,2]
[360271149,1746684647535,-0.08223924,0.00011232,2]
[360271150,1746684649063,-293.97482736,0.00011232,2]
[360271151,1746684649137,-293.97482736,0.00010958,2]
[360271152,1746684662380,-179.9,0.00010637,2]
[360271153,1746684665776,-120.1,0.00010637,2]
[360271154,1746684665800,-59.8,0.00010638,2]
[360271155,1746684676344,-186.86794338,0.00010638,2]
[360271156,1746684692343,-186.86794338,0.00010638,2]
[360271158,1746684706403,-252.52822648,0.00010638,2]
[360271159,1746684721379,-196.24461118,0.00010638,2]
[360271172,1746684736406,-300.0,0.00010637,2]
[360271173,1746684736429,-229.93490637,0.00010638,2]
[360271175,1746684753061,-173.68154185,0.00010638,2]
[360271176,1746684754635,-173.68154185,0.00010638,2]
[360271177,1746684761088,-431.45257169,0.00010638,2]
[360271178,1746684766922,-212.70036538,0.00010638,2]
[360271179,1746684781359,-191.07155604,0.00010638,2]
[360271180,1746684796966,-300.0,0.00010637,2]
[360271181,1746684796989,-521.59833617,0.00010638,2]
[360271182,1746684811353,-162.87693536,0.00010638,2]
[360271183,1746684827019,-192.14655822,0.00010638,2]
[360271184,1746684875218,364.5199525,9.931e-05,2]
[360271185,1746684902969,-192.14655822,0.00010637,2]
[360271186,1746684916443,-107.85344178,0.00010637,2]
[360271187,1746684916473,-43.14655822,0.00010637,2]
[360271188,1746684931457,-213.85344178,0.00010637,2]
[360271189,1746684931481,-6.51755423,0.00010637,2]
[360271190,1746684947091,-293.48244577,0.00010637,2]
[360271191,1746684947115,-6.51755423,0.00010637,2]
[360271193,1746685032345,-250.48244577,0.00010637,2]
[360271194,1746685032372,-49.51755423,0.00010637,2]
[360271195,1746685036836,-294.32854824,0.00010637,2]
[360271196,1746685051376,-196.46845104,0.00010637,2]
[360271197,1746685066326,-240.48020269,0.00010637,2]
[360271198,1746685081402,-227.70224622,0.00010637,2]
[360271200,1746685096348,-191.50299758,0.00010637,2]
[360271201,1746685096372,-206.73789964,0.00010637,2]
[360271202,1746685111394,-93.26210036,0.00010637,2]
[360271203,1746685111418,-247.59974483,0.00010637,2]
[360271204,1746685126317,-52.40025517,0.00010637,2]
[360271205,1746685126342,-247.59974483,0.00010638,2]
[360271208,1746685141316,-256.2585812,0.00010638,2]
[360271209,1746685156860,-300.0,0.00010637,2]
[360271210,1746685156885,-320.21170768,0.00010638,2]
[360271211,1746685171598,-164.4895309,0.00010638,2]
[360271213,1746685186316,-337.5498959,0.00010638,2]
[360271214,1746685201414,-278.99657704,0.00010638,2]
[360271215,1746685216333,-199.72706408,0.00010637,2]
[360271217,1746685231396,-100.27293592,0.00010637,2]
[360271218,1746685231426,-68.538145,0.00010637,2]
[360271219,1746685246326,-266.44782443,0.00010637,2]
[360271220,1746685262072,-155.27712225,0.00010637,2]
[360271221,1746685276345,-300.0,0.00010637,2]
[360271223,1746685292058,-178.99387814,0.00010637,2]
[360271225,1746685306901,-230.74303018,0.00010637,2]
[360271226,1746685306924,-269.25696982,0.00010637,2]
[360271227,1746685321408,-291.37331714,0.00010638,2]
[360271228,1746685336377,-156.97558173,0.00010637,2]
[360271230,1746685351380,-143.02441827,0.00010637,2]
[360271231,1746685351405,-164.27180332,0.00010638,2]
[360271233,1746685366524,-192.70377841,0.00010638,2]
[360271234,1746685382472,-461.87015135,0.00010638,2]
[360271235,1746685383708,-300.0,0.00010637,2]
[360271236,1746685383734,-161.87015135,0.00010638,2]
[360271238,1746685396965,-190.0874398,0.00010638,2]
[360271239,1746685411962,-274.47783813,0.00010638,2]
[360271240,1746685426362,-325.52216187,0.00010638,2]
[360271241,1746685441439,-274.47783813,0.00010638,2]
[360271243,1746685456402,-300.0,0.00010637,2]
[360271244,1746685456429,-0.00875935,0.00010638,2]
[360271245,1746685471422,-516.64818605,0.00010638,2]
[360271246,1746685486387,-335.0,0.00010638,2]
[360271247,1746685501394,-250.0,0.00010638,2]
[360271248,1746685517077,-200.17512853,0.00010637,2]
[360271249,1746685531322,-200.23518423,0.00010538,2]
[360271250,1746685531346,-12.58062163,0.00010637,2]
[360271251,1746685546361,-87.24424984,0.00010637,2]
[360271252,1746685546385,-152.97551846,0.00010637,2]
[360271253,1746685561334,-393.40533684,0.00010637,2]
[360271254,1746685577184,-347.3097058,0.00010637,2]
[360271255,1746685605591,516.7114551,9.76e-05,2]
[360271256,1746685613488,2404.8942993,9.746e-05,2]
[360271272,1746685813593,816.6569454,9.746e-05,2]
[360271307,1746685831925,-189.33758855,0.00010538,2]
[360271309,1746685831935,-300.0,0.00010637,2]
[360271311,1746685831945,-369.88494022,0.00010637,2]
[360271313,1746685831957,-830.11505978,0.00010637,2]
[360271314,1746685831966,-63.48494022,0.00010638,2]
[360271315,1746685832015,-569.45124166,0.00010638,2]
[360271316,1746685832107,-16052.19331832,0.00010638,2]
[360271317,1746685832118,-274.47783813,0.00010638,2]
[360271318,1746685832129,-189.33758854,0.00010671,2]
[360271319,1746685832138,-1664.75177911,0.0001075,2]
[360271320,1746685832149,-1664.75177908,0.00010756,2]
[360271321,1746685832159,-1664.75177908,0.00010762,2]
[360271322,1746685832168,-1664.75177908,0.00010767,2]
[360271323,1746685832177,-278.75197528,0.0001077,2]
[360271324,1746685832187,-500.0,0.0001077,2]
[360271326,1746685832196,-500.0,0.0001077,2]
[360271328,1746685832205,-500.0,0.0001077,2]
[360271329,1746685832214,-500.0,0.0001077,2]
[360271331,1746685832223,-500.0,0.0001077,2]
[360271333,1746685832233,-500.0,0.0001077,2]
[360271335,1746685832242,-500.0,0.0001077,2]
[360271337,1746685832252,-500.0,0.0001077,2]
[360271339,1746685832262,-500.0,0.0001077,2]
[360271341,1746685832271,-500.0,0.0001077,2]
[360271343,1746685832280,-500.0,0.0001077,2]
[360271345,1746685832289,-500.0,0.0001077,2]
[360271347,1746685832299,-537.18249507,0.0001077,2]
[360271349,1746685832309,-500.0,0.0001077,2]
[360271351,1746685832319,-592.25234096,0.0001077,2]
[360271353,1746685832329,-500.0,0.0001077,2]
[360271355,1746685832338,-500.0,0.0001077,2]
[360271357,1746685832347,-500.0,0.0001077,2]
[360271359,1746685832357,-500.0,0.0001077,2]
[360271361,1746685832366,-500.0,0.0001077,2]
[360271362,1746685832376,-500.0,0.0001077,2]
[360271364,1746685832385,-500.0,0.0001077,2]
[360271366,1746685832394,-500.0,0.0001077,2]
[360271368,1746685832404,-415.63487335,0.0001077,2]
[360271370,1746685832413,-500.0,0.0001077,2]
[360271372,1746685832423,-500.0,0.0001077,2]
[360271374,1746685832433,-500.0,0.0001077,2]
[360271376,1746685832443,-500.0,0.0001077,2]
[360271378,1746685832451,-500.0,0.0001077,2]
[360271380,1746685832461,-500.0,0.0001077,2]
[360271382,1746685832470,-500.0,0.0001077,2]
[360271384,1746685832480,-500.0,0.0001077,2]
[360271385,1746685832490,-428.02758567,0.0001077,2]
[360271387,1746685832500,-1986.49934368,0.0001077,2]
[360271389,1746685832510,-1986.49934368,0.0001077,2]
[360271390,1746685832521,-1986.49934368,0.0001077,2]
[360271391,1746685832530,-1986.49934368,0.0001077,2]
[360271392,1746685832540,-1986.49934368,0.0001077,2]
[360271393,1746685832551,-1986.49934368,0.0001077,2]
[360271394,1746685832561,-1986.49934368,0.0001077,2]
[360271395,1746685832572,-1986.49934368,0.0001077,2]
[360271396,1746685832581,-1986.49934368,0.0001077,2]
[360271397,1746685832592,-1986.49934368,0.0001077,2]
[360271398,1746685832602,-1986.49934368,0.0001077,2]
[360271399,1746685832614,-1986.49934368,0.0001077,2]
[360271400,1746685832626,-1986.49934368,0.0001077,2]
[360271401,1746685832636,-1986.49934368,0.0001077,2]
[360271402,1746685832645,-1986.49934368,0.0001077,2]
[360271403,1746685832655,-1986.49934368,0.0001077,2]
[360271404,1746685832665,-1986.49934368,0.0001077,2]
[360271405,1746685832674,-1986.49934368,0.0001077,2]
[360271406,1746685832683,-1986.49934368,0.0001077,2]
[360271407,1746685832693,-1986.49934368,0.0001077,2]
[360271408,1746685832703,-1986.49934368,0.0001077,2]
[360271409,1746685832712,-1986.49934368,0.0001077,2]
[360271410,1746685832722,-1986.49934368,0.0001077,2]
[360271411,1746685832731,-1986.49934368,0.0001077,2]
[360271412,1746685832741,-1986.49934368,0.0001077,2]
[360271413,1746685832751,-1986.49934368,0.0001077,2]
[360271414,1746685832761,-1986.49934368,0.0001077,2]
[360271415,1746685832770,-1986.49934368,0.0001077,2]
[360271416,1746685832780,-1986.49934368,0.0001077,2]
[360271417,1746685832790,-1986.49934368,0.0001077,2]
[360271418,1746685832799,-1986.49934368,0.0001077,2]
[360271419,1746685832810,-1986.49934368,0.0001077,2]
[360271420,1746685832822,-1986.49934368,0.0001077,2]
[360271421,1746685832833,-1986.49934368,0.0001077,2]
[360271422,1746685832842,-1986.49934368,0.0001077,2]
[360271423,1746685832856,-1986.49934368,0.0001077,2]
[360271424,1746685832865,-1966.3480942,0.0001077,2]
[360271425,1746685832875,-1966.3480942,0.0001077,2]
[360271426,1746685832884,-1966.3480942,0.0001077,2]
[360271427,1746685832895,-1966.3480942,0.0001077,2]
[360271428,1746685832904,-1966.3480942,0.0001077,2]
[360271429,1746685832914,-1966.3480942,0.0001077,2]
[360271430,1746685832925,-1966.3480942,0.0001077,2]
[360271431,1746685832934,-1966.3480942,0.0001077,2]
[360271432,1746685832944,-1966.3480942,0.0001077,2]
[360271433,1746685832953,-1966.3480942,0.0001077,2]
[360271434,1746685832963,-1966.3480942,0.0001077,2]
[360271435,1746685832974,-1966.3480942,0.0001077,2]
[360271436,1746685832984,-1966.3480942,0.0001077,2]
[360271437,1746685832994,-1966.3480942,0.0001077,2]
[360271438,1746685833004,-1966.3480942,0.0001077,2]
[360271439,1746685833013,-1966.3480942,0.0001077,2]
[360271440,1746685833023,-1966.3480942,0.0001077,2]
[360271441,1746685833033,-1966.3480942,0.0001077,2]
[360271442,1746685833042,-1966.3480942,0.0001077,2]
[360271443,1746685833052,-1966.3480942,0.0001077,2]
[360271444,1746685833061,-1966.3480942,0.0001077,2]
[360271445,1746685833071,-1966.3480942,0.0001077,2]
[360271446,1746685833081,-1955.42393812,0.0001077,2]
[360271447,1746685833091,-1955.42393812,0.0001077,2]
[360271448,1746685833101,-1955.42393812,0.0001077,2]
[360271449,1746685833111,-1955.42393812,0.0001077,2]
[360271450,1746685833121,-1955.42393812,0.0001077,2]
[360271451,1746685833131,-1955.42393812,0.0001077,2]
[360271452,1746685833141,-1955.42393812,0.0001077,2]
[360271453,1746685833152,-1955.42393812,0.0001077,2]
[360271454,1746685833162,-1955.42393812,0.0001077,2]
[360271455,1746685833172,-1955.42393812,0.0001077,2]
[360271456,1746685833182,-1955.42393812,0.0001077,2]
[360271457,1746685833192,-1955.42393812,0.0001077,2]
[360271458,1746685833202,-194.94340242,0.0001077,2]
[360271459,1746685833212,-215.58744121,0.0001077,2]
[360271460,1746685833222,-500.0,0.0001077,2]
[360271461,1746685833232,-178.28804056,0.0001077,2]
[360271462,1746685833242,-50000.0,0.00010771,2]
[360271463,1746685833251,-1664.75177908,0.00010773,2]
[360271464,1746685833261,-151.0,0.00010794,2]
[360271465,1746685833271,-22473.26498327,0.00010856,2]
[360271466,1746685833284,-98512.96666702,0.00010856,2]
[360271467,1746685833294,-151.0,0.00010856,2]
[360271468,1746685833303,-151.0,0.00010856,2]
[360271469,1746685833313,-251.278427,0.00010856,2]
[360271470,1746685833323,-154.106186,0.00010856,2]
[360271471,1746685833333,-251.278427,0.00010856,2]
[360271472,1746685833342,-154.106186,0.00010856,2]
[360271473,1746685833352,-165.383179,0.00010856,2]
[360271474,1746685833362,-151.0,0.00010858,2]
[360271475,1746685833371,-657.766636,0.00010858,2]
[360271476,1746685833381,-657.766636,0.00010858,2]
[360271477,1746685833391,-151.0,0.00010858,2]
[360271478,1746685833400,-234.85024,0.00010858,2]
[360271479,1746685833409,-151.0,0.00010858,2]
[360271480,1746685833419,-251.278427,0.00010858,2]
[360271481,1746685833429,-154.106186,0.00010858,2]
[360271482,1746685833439,-251.278427,0.00010858,2]
[360271483,1746685833449,-154.106186,0.00010858,2]
[360271484,1746685833458,-151.0,0.00010858,2]
[360271485,1746685833468,-1000.0,0.00010858,2]
[360271486,1746685833477,-119213.18355693,0.00010858,2]
[360271507,1746685837858,-985.13637237,0.00010858,2]
[360271555,1746685840309,-752.20000039,0.00010858,2]
[360272072,1746686320083,3060.37413637,9.855e-05,2]
[360272073,1746686320112,21839.62586363,9.855e-05,2]
[360272081,1746686556849,250.0,9.782e-05,2]
[360272144,1746687032012,-151.0,0.00010752,2]
[360272145,1746687032022,-472.0,0.00010754,2]
[360272147,1746687032031,-403.77192142,0.00010755,2]
[360272148,1746687032041,-281.90916612,0.00010755,2]
[360272150,1746687032051,-343.58359344,0.00010755,2]
[360272152,1746687032061,-500.0,0.00010755,2]
[360272154,1746687032070,-500.0,0.00010755,2]
[360272156,1746687032080,-500.0,0.00010755,2]
[360272158,1746687032089,-500.0,0.00010755,2]
[360272160,1746687032099,-500.0,0.00010755,2]
[360272162,1746687032115,-500.0,0.00010755,2]
[360272164,1746687032124,-500.0,0.00010755,2]
[360272165,1746687032133,-500.0,0.00010755,2]
[360272166,1746687032143,-500.0,0.00010755,2]
[360272167,1746687032152,-500.0,0.00010755,2]
[360272168,1746687032162,-500.0,0.00010755,2]
[360272169,1746687032171,-500.0,0.00010755,2]
[360272171,1746687032180,-500.0,0.00010755,2]
[360272173,1746687032189,-500.0,0.00010755,2]
[360272176,1746687032199,-500.0,0.00010755,2]
[360272177,1746687032207,-500.0,0.00010755,2]
[360272179,1746687032216,-500.0,0.00010755,2]
[360272181,1746687032226,-500.0,0.00010755,2]
[360272183,1746687032235,-500.0,0.00010755,2]
[360272184,1746687032243,-500.0,0.00010755,2]
[360272185,1746687032255,-500.0,0.00010755,2]
[360272186,1746687032264,-500.0,0.00010755,2]
[360272187,1746687032273,-500.0,0.00010755,2]
[360272188,1746687032283,-500.0,0.00010755,2]
[360272189,1746687032293,-500.0,0.00010755,2]
[360272190,1746687032302,-500.0,0.00010755,2]
[360272191,1746687032311,-500.0,0.00010755,2]
[360272192,1746687032321,-500.0,0.00010755,2]
[360272193,1746687032330,-500.0,0.00010755,2]
[360272194,1746687032339,-500.0,0.00010755,2]
[360272195,1746687032349,-500.0,0.00010755,2]
[360272196,1746687032357,-500.0,0.00010755,2]
[360272197,1746687032367,-500.0,0.00010755,2]
[360272198,1746687032376,-500.0,0.00010755,2]
[360272199,1746687032386,-194.17559071,0.00010755,2]
[360272200,1746687032396,-500.0,0.00010755,2]
[360272201,1746687032405,-500.0,0.00010755,2]
[360272202,1746687032415,-500.0,0.00010755,2]
[360272203,1746687032424,-500.0,0.00010755,2]
[360272204,1746687032434,-500.0,0.00010755,2]
[360272205,1746687032444,-500.0,0.00010755,2]
[360272206,1746687032454,-500.0,0.00010755,2]
[360272207,1746687032463,-519.41755907,0.00010755,2]
[360272208,1746687032473,-500.0,0.00010755,2]
[360272209,1746687032483,-500.0,0.00010755,2]
[360272210,1746687032493,-500.0,0.00010755,2]
[360272211,1746687032502,-500.0,0.00010755,2]
[360272212,1746687032512,-500.0,0.00010755,2]
[360272213,1746687032521,-500.0,0.00010755,2]
[360272214,1746687032530,-500.0,0.00010755,2]
[360272215,1746687032540,-1000.0,0.00010756,2]
[360272216,1746687032549,-1281.21763113,0.00010757,2]
[360272217,1746687032559,-500.0,0.00010757,2]
[360272218,1746687032568,-258.5856112,0.00010757,2]
[360272219,1746687032578,-305.88773687,0.00010757,2]
[360272220,1746687032587,-365479.50727452,0.00010758,2]
[360272427,1746687040439,-4520.49272548,0.00010758,2]
[360272429,1746687040450,-151.0,0.00010858,2]
[360272431,1746687040460,-360.0,0.00010858,2]